Workbook

Sheet 읍면동별 세대 및 인구
A1: 여수시 읍면동별 세대 및 인구(외국인 포함)
A2: 작성기준 : 2019. 12. 31. 현재 | J2: (단위 : 세대, 명)
A3: 구 분 | B3: 세대수1) | C3: 합 계 | F3: 한국인 | I3: 외국인
C4: 계 | D4: 남 | E4: 여 | F4: 계 | G4: 남 | H4: 여 | I4: 계 | J4: 남 | K4: 여
A5: 18년 12월말 | B5: 120,810 | C5: 287,868 | D5: 147,056 | E5: 140,812 | F5: 283,300 | G5: 143,802 | H5: 139,498 | I5: 4,568 | J5: 3,254 | K5: 1,314
A6: 19년 1월말 | B6: 120,911 | C6: =SUM(D6:E6) -> 287,663 | D6: =SUM(G6+J6) -> 146,975 | E6: =SUM(H6+K6) -> 140,688 | F6: =SUM(G6:H6) -> 283,114 | G6: 143,738 | H6: 139,376 | I6: 4,549 | J6: 3,237 | K6: 1,312
A7: 19년 2월말 | B7: 121,044 | C7: 287,330 | D7: 146,790 | E7: 140,540 | F7: 282,813 | G7: 143,585 | H7: 139,228 | I7: 4,517 | J7: 3,205 | K7: 1,312
A8: 19년 3월말 | B8: 121,291 | C8: 287,290 | D8: 146,802 | E8: 140,488 | F8: 282,780 | G8: 143,617 | H8: 139,163 | I8: 4,510 | J8: 3,185 | K8: 1,325
A9: 19년 4월말 | B9: 121,719 | C9: 287,472 | D9: 146,967 | E9: 140,505 | F9: 282,946 | G9: 143,773 | H9: 139,173 | I9: 4,526 | J9: 3,194 | K9: 1,332
A10: 19년 5월말 | B10: 122,111 | C10: 287,724 | D10: 147,095 | E10: 140,629 | F10: 283,182 | G10: 143,890 | H10: 139,292 | I10: 4,542 | J10: 3,205 | K10: 1,337
A11: 19년 6월말 | B11: 122,210 | C11: 287,463 | D11: 146,992 | E11: 140,471 | F11: 282,869 | G11: 143,747 | H11: 139,122 | I11: 4,594 | J11: 3,245 | K11: 1,349
A12: 19년 7월말 | B12: 122,374 | C12: 287,274 | D12: 146,905 | E12: 140,369 | F12: 282,632 | G12: 143,615 | H12: 139,017 | I12: 4,642 | J12: 3,290 | K12: 1,352
A13: 19년 8월말 | B13: 122,466 | C13: 287,049 | D13: 146,810 | E13: 140,239 | F13: 282,357 | G13: 143,470 | H13: 138,887 | I13: 4,692 | J13: 3,340 | K13: 1,352
A14: 19년 9월말 | B14: 122,689 | C14: 286,848 | D14: 146,666 | E14: 140,182 | F14: 282,188 | G14: 143,373 | H14: 138,815 | I14: 4,660 | J14: 3,293 | K14: 1,367
A15: 19년 10월말 | B15: 122,918 | C15: 286,729 | D15: 146,654 | E15: 140,075 | F15: 282,058 | G15: 143,351 | H15: 138,707 | I15: 4,671 | J15: 3,303 | K15: 1,368
A16: 19년 11월말 | B16: 123,445 | C16: 287,673 | D16: 147,163 | E16: 140,510 | F16: 282,980 | G16: 143,857 | H16: 139,123 | I16: 4,693 | J16: 3,306 | K16: 1,387
A17: 19년 12월말 | B17: 123,677 | C17: 287,410 | D17: 147,059 | E17: 140,351 | F17: 282,786 | G17: 143,791 | H17: 138,995 | I17: 4,624 | J17: 3,268 | K17: 1,356
A18: 돌산읍 | B18: 6,565 | C18: =SUM(D18:E18) -> 14,134 | D18: =SUM(G18+J18) -> 7,469 | E18: =SUM(H18+K18) -> 6,665 | F18: =SUM(G18,H18) -> 13,373 | G18: 6,798 | H18: 6,575 | I18: 761 | J18: 671 | K18: 90
A19: 소라면 | B19: 8,813 | C19: 21,105 | D19: =SUM(G19+J19) -> 10,713 | E19: =SUM(H19+K19) -> 10,392 | F19: =SUM(G19,H19) -> 20,968 | G19: 10,667 | H19: 10,301 | I19: 137 | J19: 46 | K19: 91
A20: 율촌면 | B20: 3,241 | C20: 6,549 | D20: =SUM(G20+J20) -> 3,391 | E20: 3,158 | F20: 6,399 | G20: 3,282 | H20: 3,117 | I20: 150 | J20: 109 | K20: 41
A21: 화양면 | B21: 3,545 | C21: 6,817 | D21: 3,571 | E21: 3,246 | F21: 6,629 | G21: 3,426 | H21: 3,203 | I21: 188 | J21: 145 | K21: 43
A22: 남면 | B22: 1,682 | C22: 3,045 | D22: 1,590 | E22: 1,455 | F22: 2,931 | G22: 1,487 | H22: 1,444 | I22: 114 | J22: 103 | K22: 11
A23: 화정면 | B23: 1,267 | C23: 2,244 | D23: 1,127 | E23: 1,117 | F23: 2,183 | G23: 1,070 | H23: 1,113 | I23: 61 | J23: 57 | K23: 4
A24: 삼산면 | B24: 1,210 | C24: 2,211 | D24: 1,265 | E24: 946 | F24: 2,112 | G24: 1,176 | H24: 936 | I24: 99 | J24: 89 | K24: 10
A25: 동문동 | B25: 2,461 | C25: 4,747 | D25: 2,406 | E25: 2,341 | F25: 4,688 | G25: 2,367 | H25: 2,321 | I25: 59 | J25: 39 | K25: 20
A26: 한려동 | B26: 1,818 | C26: 3,304 | D26: 1,679 | E26: 1,625 | F26: 3,283 | G26: 1,673 | H26: 1,610 | I26: 21 | J26: 6 | K26: 15
A27: 중앙동 | B27: 2,352 | C27: 4,743 | D27: 2,396 | E27: 2,347 | F27: 4,633 | G27: 2,315 | H27: 2,318 | I27: 110 | J27: 81 | K27: 29
A28: 충무동 | B28: 2,231 | C28: 4,199 | D28: 2,165 | E28: 2,034 | F28: 4,154 | G28: 2,138 | H28: 2,016 | I28: 45 | J28: 27 | K28: 18
A29: 광림동 | B29: 3,252 | C29: 6,448 | D29: 3,326 | E29: 3,122 | F29: 6,403 | G29: 3,315 | H29: 3,088 | I29: 45 | J29: 11 | K29: 34
A30: 서강동 | B30: 1,918 | C30: 3,915 | D30: 1,949 | E30: 1,966 | F30: 3,887 | G30: 1,942 | H30: 1,945 | I30: 28 | J30: 7 | K30: 21
A31: 대교동 | B31: 3,092 | C31: 5,898 | D31: 3,120 | E31: 2,778 | F31: 5,599 | G31: 2,864 | H31: 2,735 | I31: 299 | J31: 256 | K31: 43
A32: 국동 | B32: 5,373 | C32: 12,386 | D32: 6,411 | E32: 5,975 | F32: 12,014 | G32: 6,090 | H32: 5,924 | I32: 372 | J32: 321 | K32: 51
A33: 월호동 | B33: 2,907 | C33: 7,543 | D33: 3,851 | E33: 3,692 | F33: 7,249 | G33: 3,582 | H33: 3,667 | I33: 294 | J33: 269 | K33: 25
A34: 여서동 | B34: 7,784 | C34: 19,559 | D34: 9,647 | E34: 9,912 | F34: 19,417 | G34: 9,581 | H34: 9,836 | I34: 142 | J34: 66 | K34: 76
A35: 문수동 | B35: 8,667 | C35: 20,383 | D35: 10,241 | E35: 10,142 | F35: 20,066 | G35: 10,050 | H35: 10,016 | I35: 317 | J35: 191 | K35: 126
A36: 미평동 | B36: 5,731 | C36: 12,453 | D36: 6,629 | E36: 5,824 | F36: 12,225 | G36: 6,467 | H36: 5,758 | I36: 228 | J36: 162 | K36: 66
A37: 둔덕동 | B37: 4,038 | C37: 10,699 | D37: 5,370 | E37: 5,329 | F37: 10,544 | G37: 5,303 | H37: 5,241 | I37: 155 | J37: 67 | K37: 88
A38: 만덕동 | B38: 4,352 | C38: 10,737 | D38: 5,382 | E38: 5,355 | F38: 10,578 | G38: 5,289 | H38: 5,289 | I38: 159 | J38: 93 | K38: 66
A39: 쌍봉동 | B39: 13,239 | C39: 33,473 | D39: 17,139 | E39: 16,334 | F39: 33,248 | G39: 17,028 | H39: 16,220 | I39: 225 | J39: 111 | K39: 114
A40: 시전동 | B40: 13,273 | C40: 36,361 | D40: 18,259 | E40: 18,102 | F40: 36,116 | G40: 18,122 | H40: 17,994 | I40: 245 | J40: 137 | K40: 108
A41: 여천동 | B41: 9,993 | C41: 22,204 | D41: 11,595 | E41: 10,609 | F41: 22,047 | G41: 11,548 | H41: 10,499 | I41: 157 | J41: 47 | K41: 110
A42: 주삼동 | B42: 2,980 | C42: 8,311 | D42: 4,214 | E42: 4,097 | F42: 8,244 | G42: 4,183 | H42: 4,061 | I42: 67 | J42: 31 | K42: 36
A43: 삼일동 | B43: 1,287 | C43: 2,712 | D43: 1,515 | E43: 1,197 | F43: 2,574 | G43: 1,390 | H43: 1,184 | I43: 138 | J43: 125 | K43: 13
A44: 묘도동 | B44: 606 | C44: 1,230 | D44: 639 | E44: 591 | F44: 1,222 | G44: 638 | H44: 584 | I44: 8 | J44: 1 | K44: 7
A45: 주 : 1) 세대수에는 외국인 세대 제외

Sheet 65세이상 인구(총괄)
A1: 65세이상 인구 현황(총괄)
A2: 작성기준 : 2019. 12. 31. 현재 | D2: (단위 : 명)
A3: 구 분 | B3: 계 | C3: 남 | D3: 여 | E3: 노령화 지수
A4: 2011년말 | B4: 37,830 | C4: 15,023 | D4: 22,807 | E4: 82.0
A5: 2012년말 | B5: 39,671 | C5: 15,929 | D5: 23,742 | E5: 89.4
A6: 2013년말 | B6: 41,369 | C6: 16,775 | D6: 24,594 | E6: 96.8
A7: 2014년말 | B7: 43,225 | C7: 17,752 | D7: 25,473 | E7: 105.4
A8: 2015년말 | B8: 44,997 | C8: 18,775 | D8: 26,222 | E8: 114.3
A9: 2016년말 | B9: 46,632 | C9: 19,720 | D9: 26,912 | E9: 121.8
A10: 2017년말 | B10: 48,569 | C10: 20,703 | D10: 27,866 | E10: 130.6
A11: 2018년말 | B11: 49,609 | C11: 21,259 | D11: 28,350 | E11: 139.0
A12: 2019년 1월말 | B12: 49,704 | C12: 21,310 | D12: 28,394 | E12: 140.0
A13: 2019년 2월말 | B13: 49,819 | C13: 21,358 | D13: 28,461 | E13: 140.7
A14: 2019년 3월말 | B14: 50,076 | C14: 21,489 | D14: 28,587 | E14: 141.9
A15: 2019년 4월말 | B15: 50,229 | C15: 21,576 | D15: 28,653 | E15: 142.3
A16: 2019년 5월말 | B16: 50,498 | C16: 21,716 | D16: 28,782 | E16: 143.7
A17: 2019년 6월말 | B17: 50,706 | C17: 21,831 | D17: 28,875 | E17: 144.3
A18: 2019년 7월말 | B18: 50,883 | C18: 21,900 | D18: 28,983 | E18: 145.7
A19: 2019년 8월말 | B19: 51,094 | C19: 22,009 | D19: 29,085 | E19: 146.7
A20: 2019년 9월말 | B20: 51,310 | C20: 22,092 | D20: 29,218 | E20: 148.0
A21: 2019년 10월말 | B21: 51,548 | C21: 22,237 | D21: 29,311 | E21: 149.2
A22: 2019년 11월말 | B22: 51,802 | C22: 22,363 | D22: 29,439 | E22: 149.9
A23: 2019년 12월말 | B23: 51,995 | C23: 22,462 | D23: 29,533 | E23: 151.0
A24: 자료 : 민원지적과
A25: 주 : 노령화 지수 = (65세이상인구 / 0~14세 인구) * 100
J34: `
